[Event "DVM U14w 2019"]
[Site "Neumuenster"]
[Date "2019.12.30"]
[Round "7"]
[White "Müller, Helene"]
[Black "Zoellner, Bente"]
[Result "0-1"]
[ECO "A49"]
[WhiteElo "1545"]
[BlackElo "1630"]
[Annotator "NA"]
[PlyCount "76"]
[EventDate "2019.12.27"]
[EventType "team-tourn"]
[EventRounds "7"]
[EventCountry "GER"]
[SourceTitle "playchess.com"]
[Source "ChessBase"]
[SourceQuality "1"]
[WhiteTeam "SC Borussia Lichtenberg"]
[BlackTeam "SC Papenburg"]
[BlackTeamCountry "GER"]
[TimeControl "40/5400+30:1800+30"]

1. d4 {[%emt 0:00:00]} Nf6 {[%emt 0:00:00]} 2. Nf3 {[%emt 0:00:00]} g6 {[%emt 0:00:00]} 3. g3 {[%emt 0:00:00]} Bg7 {[%emt 0:00:00]} 4. Bg2 {[%emt 0:00:02]} O-O {[%emt 0:00:15]} 5. O-O {[%emt 0:00:05]} d6 {[%emt 0:00:50]} 6. b3 {[%emt 0:00:26]} Nbd7 {[%emt 0:00:52]} 7. Bb2 {[%emt 0:00:58]} Rb8 {[%emt 0:01:28]} 8. Nc3 {[%emt 0:01:15]} b6 {[%emt 0:01:39]} 9. Qd2 {[%emt 0:05:59]} Bb7 {[%emt 0:01:42]} 10. Rad1 {[%emt 0:02:38]} c5 {[%emt 0:01:02]} 11. dxc5 {[%emt 0:00:50]} bxc5 {[%emt 0:06:13]} 12. Rfe1 {[%emt 0:07:08]} Ne4 {[%emt 0:05:25]} 13. Nxe4 {[%emt 0:06:15]} Bxb2 {[%emt 0:01:39]} 14. c3 {[%emt 0:01:35]} Bxe4 {[%emt 0:02:53]} 15. Qxb2 {[%emt 0:00:21]} Nf6 {[%emt 0:01:15]} 16. Qd2 {[%emt 0:09:54]} Kg7 {[%emt 0:04:36]} 17. h4 {[%emt 0:19:29]} Qc8 {[%emt 0:06:51]} 18. Ng5 {[%emt 0:11:49]} Bxg2 {[%emt 0:03:20]} 19. Kxg2 {[%emt 0:00:19]} Qc6+ {[%emt 0:03:00]} 20. f3 {[%emt 0:03:35]} h6 {[%emt 0:03:50]} 21. Nh3 {[%emt 0:01:43]} a5 {[%emt 0:02:14]} 22. Qc2 {[%emt 0:11:24]} a4 {[%emt 0:01:10]} 23. Rh1 {[%emt 0:04:03]} Ng4 {[%emt 0:03:07]} 24. Rd3 {[%emt 0:06:12]} axb3 {[%emt 0:03:26]} 25. axb3 {[%emt 0:00:14]} Nf6 {[%emt 0:03:56]} 26. Nf4 {[%emt 0:01:03]} c4 {[%emt 0:01:56]} 27. bxc4 {[%emt 0:01:11]} Qxc4 {[%emt 0:01:15]} 28. Kh2 {[%emt 0:02:00]} Rfc8 {[%emt 0:01:54]} 29. Re3 {[%emt 0:02:52]} e5 {[%emt 0:03:01]} 30. Nh3 {[%emt 0:01:01]} Nd5 {[%emt 0:00:33]} 31. Rd3 Nb4 {[%emt 0:00:32]} 32. Qd2 {[%emt 0:01:03]} Nxd3 {[%emt 0:00:35]} 33. Qxd3 {[%emt 0:00:09]} Qxd3 {[%emt 0:00:25]} 34. exd3 {[%emt 0:00:03]} Rb2+ {[%emt 0:00:11]} 35. Kg1 {[%emt 0:00:43]} Rxc3 {[%emt 0:00:09]} 36. Nf2 {[%emt 0:00:10]} Rc1+ {[%emt 0:00:22]} 37. Kg2 {[%emt 0:00:11]} Rxh1 {[%emt 0:00:07]} 38. Kxh1 {[%emt 0:00:04]} Rxf2 {[%emt 0:00:07] normal} 0-1

[Event "DVM U14w 2019"]
[Site "Neumuenster"]
[Date "2019.12.30"]
[Round "7"]
[White "Voigt, Anastasia"]
[Black "Moradi, Yakta"]
[Result "1-0"]
[ECO "C50"]
[WhiteElo "1511"]
[BlackElo "1257"]
[Annotator "NA"]
[PlyCount "117"]
[EventDate "2019.12.27"]
[EventType "team-tourn"]
[EventRounds "7"]
[EventCountry "GER"]
[SourceTitle "playchess.com"]
[Source "ChessBase"]
[SourceQuality "1"]
[WhiteTeam "USV Halle"]
[BlackTeam "SV Traktor Priestewitz"]
[WhiteTeamCountry "GER"]
[TimeControl "40/5400+30:1800+30"]

1. e4 {[%emt 0:00:00]} e5 {[%emt 0:00:00]} 2. Nf3 {[%emt 0:00:00]} Nc6 {[%emt 0:00:00]} 3. Bc4 {[%emt 0:00:00]} Nf6 {[%emt 0:00:00]} 4. d3 {[%emt 0:00:00]} Bc5 {[%emt 0:00:21]} 5. c3 {[%emt 0:00:00]} d6 {[%emt 0:01:14]} 6. Nbd2 {[%emt 0:00:40]} O-O {[%emt 0:01:42]} 7. O-O {[%emt 0:00:19]} Bd7 {[%emt 0:02:10]} 8. Bb3 {[%emt 0:00:48]} Qe7 {[%emt 0:01:12]} 9. Re1 {[%emt 0:02:29]} Ng4 {[%emt 0:12:52]} 10. Re2 {[%emt 0:00:23]} Nf6 {[%emt 0:01:49]} 11. h3 {[%emt 0:01:06]} a6 {[%emt 0:10:22]} 12. Nf1 {[%emt 0:01:11]} h6 {[%emt 0:05:19]} 13. Be3 {[%emt 0:01:12]} Bxe3 {[%emt 0:02:16]} 14. Rxe3 {[%emt 0:02:17]} Nh7 {[%emt 0:06:10]} 15. Rc1 {[%emt 0:06:10]} Ng5 16. Ng3 {[%emt 0:07:26]} Nh7 {[%emt 0:07:06]} 17. d4 {[%emt 0:03:06]} exd4 {[%emt 0:03:03]} 18. cxd4 {[%emt 0:00:32]} Rac8 {[%emt 0:01:55]} 19. Rec3 {[%emt 0:07:46]} Be8 20. Qc2 {[%emt 0:10:38]} Na5 {[%emt 0:05:18]} 21. Rxc7 {[%emt 0:04:49]} Rxc7 {[%emt 0:00:16]} 22. Qxc7 {[%emt 0:00:11]} Qxc7 {[%emt 0:00:03]} 23. Rxc7 {[%emt 0:00:09]} Nxb3 {[%emt 0:00:18]} 24. axb3 {[%emt 0:00:11]} Bb5 {[%emt 0:01:31]} 25. Nd2 {[%emt 0:02:11]} Rb8 {[%emt 0:00:30]} 26. d5 {[%emt 0:01:36]} Nf6 {[%emt 0:00:40]} 27. Nf5 {[%emt 0:01:48]} Ne8 {[%emt 0:00:12]} 28. Rc3 {[%emt 0:02:23]} Kf8 {[%emt 0:01:38]} 29. Nc4 {[%emt 0:01:07]} h5 {[%emt 0:00:51]} 30. Ncxd6 {[%emt 0:02:05]} Nxd6 {[%emt 0:00:16]} 31. Nxd6 {[%emt 0:00:10]} Ke7 {[%emt 0:01:28]} 32. Nxb5 {[%emt 0:01:12]} axb5 {[%emt 0:00:05]} 33. Rc5 {[%emt 0:00:28]} f6 {[%emt 0:01:11]} 34. Rxb5 {[%emt 0:00:19]} Kd6 {[%emt 0:00:07]} 35. f3 {[%emt 0:00:56]} Ke5 {[%emt 0:01:05]} 36. Kh2 {[%emt 0:02:32]} f5 {[%emt 0:00:03]} 37. d6+ {[%emt 0:00:08]} Kxd6 {[%emt 0:00:10]} 38. Rxf5 {[%emt 0:00:06]} Ke6 {[%emt 0:00:12]} 39. Rxh5 {[%emt 0:00:09]} Rc8 {[%emt 0:00:21]} 40. Rb5 {[%emt 0:00:11]} Rb8 {[%emt 0:00:24]} 41. f4 {[%emt 0:31:21]} Rf8 {[%emt 0:30:21]} 42. f5+ {[%emt 0:00:06]} Kf6 {[%emt 0:00:14]} 43. Rxb7 {[%emt 0:00:16]} Re8 {[%emt 0:00:33]} 44. Rb6+ {[%emt 0:00:49]} Kg5 {[%emt 0:00:12]} 45. Rg6+ {[%emt 0:01:13]} Kf4 {[%emt 0:00:06]} 46. b4 {[%emt 0:01:30]} Kxe4 {[%emt 0:00:02]} 47. Re6+ {[%emt 0:00:04]} Rxe6 {[%emt 0:01:20]} 48. fxe6 {[%emt 0:00:05]} Kd3 {[%emt 0:00:07]} 49. e7 {[%emt 0:00:05]} Kc2 {[%emt 0:00:04]} 50. e8=Q {[%emt 0:00:08]} Kxb2 {[%emt 0:00:02]} 51. b5 {[%emt 0:00:10]} g5 {[%emt 0:00:05]} 52. b6 {[%emt 0:00:05]} g4 {[%emt 0:00:04]} 53. b7 {[%emt 0:00:04]} g3+ {[%emt 0:00:05]} 54. Kxg3 {[%emt 0:00:06]} Kc2 {[%emt 0:00:08]} 55. b8=R Kd3 56. Rd8+ {[%emt 0:00:57]} Kc4 {[%emt 0:00:35]} 57. Qc6+ {[%emt 0:00:27]} Kb4 {[%emt 0:00:06]} 58. Rb8+ {[%emt 0:00:08]} Ka5 {[%emt 0:00:10]} 59. Qa8# {[%emt 0:00:05] normal} 1-0

[Event "DVM U14w 2019"]
[Site "Neumuenster"]
[Date "2019.12.30"]
[Round "7"]
[White "Sinner, Joselyne"]
[Black "Kuran, Olivia"]
[Result "1-0"]
[ECO "C66"]
[WhiteElo "1407"]
[BlackElo "1003"]
[Annotator "NA"]
[PlyCount "111"]
[EventDate "2019.12.27"]
[EventType "team-tourn"]
[EventRounds "7"]
[EventCountry "GER"]
[SourceTitle "playchess.com"]
[Source "ChessBase"]
[SourceQuality "1"]
[WhiteTeam "SG Porz"]
[BlackTeam "Karlsruher SF"]
[WhiteTeamCountry "GER"]
[TimeControl "40/5400+30:1800+30"]

1. e4 {[%emt 0:00:00]} e5 {[%emt 0:00:00]} 2. Nf3 {[%emt 0:00:00]} Nc6 {[%emt 0:00:00]} 3. Nc3 {[%emt 0:00:00]} Nf6 {[%emt 0:00:00]} 4. Bb5 {[%emt 0:00:00]} d6 {[%emt 0:02:01]} 5. d4 {[%emt 0:00:00]} Bd7 {[%emt 0:03:45]} 6. O-O {[%emt 0:05:35]} Be7 {[%emt 0:03:35]} 7. Re1 {[%emt 0:02:45]} O-O {[%emt 0:01:12]} 8. Bxc6 {[%emt 0:05:05]} Bxc6 {[%emt 0:01:49]} 9. dxe5 {[%emt 0:00:06]} dxe5 {[%emt 0:01:05]} 10. Qxd8 {[%emt 0:00:13]} Raxd8 {[%emt 0:00:45]} 11. Nxe5 {[%emt 0:00:08]} Bd7 {[%emt 0:04:32]} 12. Nxd7 {[%emt 0:02:00]} Rxd7 {[%emt 0:00:55]} 13. Bf4 {[%emt 0:00:50]} c6 {[%emt 0:02:19]} 14. Rad1 {[%emt 0:01:40]} Rfd8 {[%emt 0:00:50]} 15. Rxd7 {[%emt 0:05:26]} Rxd7 {[%emt 0:00:35]} 16. a3 {[%emt 0:00:14]} h6 {[%emt 0:01:47]} 17. f3 {[%emt 0:00:40]} Nh5 {[%emt 0:01:24]} 18. Be3 {[%emt 0:01:34]} a6 {[%emt 0:00:29]} 19. Rd1 {[%emt 0:04:52]} Rxd1+ {[%emt 0:01:24]} 20. Nxd1 {[%emt 0:00:05]} Nf6 {[%emt 0:00:32]} 21. Nc3 {[%emt 0:00:26]} Ne8 {[%emt 0:01:01]} 22. Kf2 {[%emt 0:00:32]} Nd6 {[%emt 0:00:57]} 23. Bc5 {[%emt 0:02:07]} Kf8 {[%emt 0:01:05]} 24. b3 {[%emt 0:01:28]} Ke8 {[%emt 0:01:12]} 25. Bd4 {[%emt 0:04:11]} Kf8 {[%emt 0:01:14]} 26. a4 {[%emt 0:01:04]} Ne8 {[%emt 0:02:18]} 27. Ke3 {[%emt 0:01:23]} Bg5+ {[%emt 0:00:13]} 28. f4 {[%emt 0:00:23]} Bf6 {[%emt 0:00:14]} 29. Bxf6 {[%emt 0:00:47]} Nxf6 {[%emt 0:00:11]} 30. h3 {[%emt 0:01:08]} Ke7 {[%emt 0:01:11]} 31. Ne2 {[%emt 0:03:26]} Ke6 {[%emt 0:02:03]} 32. Nd4+ {[%emt 0:01:04]} Kd7 {[%emt 0:01:05]} 33. g4 {[%emt 0:02:01]} c5 {[%emt 0:00:58]} 34. Nf5 {[%emt 0:02:23]} Ne8 {[%emt 0:00:51]} 35. Kd3 {[%emt 0:01:22]} b6 {[%emt 0:01:05]} 36. Ne3 {[%emt 0:02:23]} g6 {[%emt 0:00:40]} 37. Nd5 {[%emt 0:01:21]} b5 {[%emt 0:00:34]} 38. axb5 {[%emt 0:00:37]} axb5 {[%emt 0:00:15]} 39. e5 {[%emt 0:01:43]} Ke6 {[%emt 0:01:19]} 40. Ke4 {[%emt 0:01:34]} f6 {[%emt 0:01:21]} 41. Nxf6 {[%emt 0:32:25]} Nxf6+ {[%emt 0:30:18]} 42. exf6 {[%emt 0:00:03]} Kxf6 {[%emt 0:00:11]} 43. f5 {[%emt 0:03:24]} gxf5+ {[%emt 0:00:27]} 44. gxf5 {[%emt 0:00:05]} h5 {[%emt 0:00:24]} 45. h4 {[%emt 0:00:35]} b4 {[%emt 0:00:26]} 46. Kf4 {[%emt 0:00:12]} Kf7 {[%emt 0:00:16]} 47. Kg5 {[%emt 0:00:53]} Kg7 {[%emt 0:00:35]} 48. Kxh5 {[%emt 0:00:41]} Kf6 {[%emt 0:00:09]} 49. Kg4 {[%emt 0:00:08]} Kg7 {[%emt 0:00:14]} 50. Kg5 {[%emt 0:00:10]} Kf7 {[%emt 0:00:10]} 51. h5 {[%emt 0:00:04]} Kg7 {[%emt 0:00:10]} 52. h6+ {[%emt 0:00:32]} Kh7 {[%emt 0:00:11]} 53. f6 {[%emt 0:00:12]} Kg8 {[%emt 0:00:05]} 54. Kg6 {[%emt 0:00:32]} Kh8 {[%emt 0:00:21]} 55. f7 {[%emt 0:00:12]} c4 {[%emt 0:00:23]} 56. f8=Q# {[%emt 0:00:03] normal} 1-0

[Event "DVM U14w 2019"]
[Site "Neumuenster"]
[Date "2019.12.30"]
[Round "7"]
[White "Glowiak, Alexandra"]
[Black "Dietz, Kristin"]
[Result "0-1"]
[ECO "B43"]
[WhiteElo "1403"]
[BlackElo "1946"]
[Annotator "NA"]
[PlyCount "92"]
[EventDate "2019.12.27"]
[EventType "team-tourn"]
[EventRounds "7"]
[EventCountry "GER"]
[SourceTitle "playchess.com"]
[Source "ChessBase"]
[SourceQuality "1"]
[WhiteTeam "SV Traktor Priestewitz"]
[BlackTeam "USV Halle"]
[BlackTeamCountry "GER"]
[TimeControl "40/5400+30:1800+30"]

1. e4 {[%emt 0:00:00]} c5 {[%emt 0:00:00]} 2. Nf3 {[%emt 0:00:00]} e6 {[%emt 0:00:00]} 3. d4 {[%emt 0:00:00]} cxd4 {[%emt 0:00:00]} 4. Nxd4 {[%emt 0:00:00]} a6 {[%emt 0:00:00]} 5. Nc3 {[%emt 0:00:26]} Qc7 {[%emt 0:00:07]} 6. Be3 {[%emt 0:00:56]} Bb4 {[%emt 0:00:19] unterminated} 7. Nde2 {[%emt 0:03:17] unterminated} Nf6 {[%emt 0:01:18] unterminated unterminated. B43: Sicilian: Kan Variation: 5 Nc3} 8. a3 {[%emt 0:05:10] unterminated} Be7 {[%emt 0:07:06] unterminated} 9. Nd4 {[%emt 0:08:48]} O-O $146 {[%emt 0:00:37] unterminated} ({Predecessor:} 9... Nc6 10. Be2 O-O 11. O-O d6 12. Kh1 Na5 13. Qe1 Bd7 14. f4 Nc4 15. Bc1 Rac8 16. Bd3 b5 17. Nce2 g6 18. b3 e5 19. Nf3 {0-1 (42) Souza,R (2159)-Mekhitarian,K (2555) Rio de Janeiro 2016}) 10. Be2 {[%emt 0:00:39]} d6 {[%emt 0:01:16]} 11. O-O {[%emt 0:00:38] unterminated} b5 {[%emt 0:00:45] unterminated} 12. f3 {[%emt 0:02:55]} Bb7 {[%emt 0:00:25] unterminated} 13. Rc1 {[%emt 0:05:00] unterminated} Nbd7 {[%emt 0:04:33] unterminated} 14. Nb3 {[%emt 0:04:10] unterminated} Rac8 {[%emt 0:06:33] unterminated} 15. Qe1 {[%emt 0:09:02] unterminated} d5 {[%emt 0:03:30]} 16. exd5 {[%emt 0:01:01] unterminated} Nxd5 {[%emt 0:01:22]} 17. Nxd5 {[%emt 0:00:12]} Bxd5 {[%emt 0:00:15] unterminated} 18. f4 {[%emt 0:04:43] unterminated} Bf6 {[%emt 0:04:59] unterminated} 19. Nd4 {[%emt 0:02:59] unterminated} Qd6 {[%emt 0:06:45] unterminated} 20. c3 {[%emt 0:02:32] unterminated} Nc5 {[%emt 0:01:45] unterminated} 21. Rd1 {[%emt 0:03:14] unterminated} Na4 {[%emt 0:05:38] unterminated} 22. Rd2 $15 {[%emt 0:02:26]} Qb8 {[%emt 0:03:26]} 23. Bf3 {[%emt 0:07:40]} Nb6 {[%emt 0:01:10]} 24. f5 {[%emt 0:02:41]} e5 {[%emt 0:03:59]} 25. Nc2 {[%emt 0:04:23]} Bxf3 {[%emt 0:01:41]} 26. Rxf3 {[%emt 0:00:31]} Nc4 {[%emt 0:00:17]} 27. Re2 {[%emt 0:04:08]} Nxb2 {[%emt 0:01:53]} 28. Nb4 {[%emt 0:01:03]} e4 {[%emt 0:03:07]} 29. Bf4 {[%emt 0:02:43]} Qa7+ {[%emt 0:02:52]} 30. Be3 {[%emt 0:00:54]} Qb7 {[%emt 0:00:18]} 31. Rh3 {[%emt 0:02:11]} Nd3 {[%emt 0:02:49]} 32. Qd1 {[%emt 0:01:41]} Rxc3 {[%emt 0:00:48]} 33. Nxd3 {[%emt 0:01:10]} Rxd3 {[%emt 0:00:36]} 34. Qc2 {[%emt 0:01:36]} Rc8 {[%emt 0:00:41]} 35. Qb1 {[%emt 0:00:29]} Qd5 {[%emt 0:01:15]} 36. Re1 {[%emt 0:00:36]} Qb3 {[%emt 0:02:04]} 37. Qxb3 {[%emt 0:00:27]} Rxb3 {[%emt 0:00:02]} 38. Bf4 {[%emt 0:00:38]} Rxh3 {[%emt 0:00:30]} 39. gxh3 {[%emt 0:00:02]} Rc4 {[%emt 0:00:53]} 40. Kg2 {[%emt 0:01:55]} g6 {[%emt 0:00:11]} 41. Bh6 {[%emt 0:30:32]} Bg7 {[%emt 0:30:40]} 42. Bg5 {[%emt 0:00:15]} gxf5 {[%emt 0:00:37]} 43. Rf1 {[%emt 0:00:31]} h6 {[%emt 0:00:43]} 44. Bh4 {[%emt 0:00:31]} e3 {[%emt 0:00:34]} 45. Bg3 {[%emt 0:00:12]} Rc3 {[%emt 0:03:07]} 46. Rxf5 {[%emt 0:00:18]} Rxa3 {[%emt 0:00:37] normal} 0-1

[Event "DVM U14w 2019"]
[Site "Neumuenster"]
[Date "2019.12.30"]
[Round "7"]
[White "Reiter, Hannah"]
[Black "Ramien, Hannah"]
[Result "1-0"]
[ECO "C57"]
[WhiteElo "1373"]
[BlackElo "1439"]
[Annotator "NA"]
[PlyCount "59"]
[EventDate "2019.12.27"]
[EventType "team-tourn"]
[EventRounds "7"]
[EventCountry "GER"]
[SourceTitle "playchess.com"]
[Source "ChessBase"]
[SourceQuality "1"]
[WhiteTeam "Karlsruher SF"]
[BlackTeam "SG Porz"]
[WhiteTeamCountry "GER"]
[BlackTeamCountry "GER"]
[TimeControl "40/5400+30:1800+30"]

1. e4 {[%emt 0:00:00]} e5 {[%emt 0:00:00]} 2. Nf3 {[%emt 0:00:00]} Nc6 {[%emt 0:00:00]} 3. Bc4 {[%emt 0:00:00]} Nf6 {[%emt 0:00:00]} 4. Ng5 {[%emt 0:00:26]} d5 {[%emt 0:00:06]} 5. exd5 {[%emt 0:00:05]} Nd4 {[%emt 0:00:12]} 6. d3 {[%emt 0:01:00]} h6 {[%emt 0:07:15]} 7. Nf3 {[%emt 0:00:54]} Bg4 {[%emt 0:01:42]} 8. Nbd2 {[%emt 0:01:05]} Nxd5 {[%emt 0:04:33]} 9. h3 {[%emt 0:03:22]} Bxf3 {[%emt 0:15:35]} 10. Nxf3 {[%emt 0:00:13]} Nc6 {[%emt 0:07:42]} 11. O-O {[%emt 0:01:12]} Nb6 {[%emt 0:16:29]} 12. Bb5 {[%emt 0:02:47]} Bd6 {[%emt 0:10:22]} 13. Re1 {[%emt 0:00:56]} Nd7 {[%emt 0:02:20]} 14. Bf4 {[%emt 0:01:14]} Qf6 {[%emt 0:06:17]} 15. Qd2 {[%emt 0:04:09]} O-O {[%emt 0:03:07]} 16. Bg3 {[%emt 0:04:06]} Rfe8 {[%emt 0:17:21]} 17. Bxc6 {[%emt 0:02:57]} bxc6 {[%emt 0:00:11]} 18. Qc3 {[%emt 0:01:27]} c5 {[%emt 0:01:45]} 19. Re2 {[%emt 0:03:06]} Re7 {[%emt 0:02:22]} 20. Rae1 {[%emt 0:01:06]} Rae8 {[%emt 0:00:18]} 21. Qa5 {[%emt 0:02:31]} Rb8 {[%emt 0:00:47]} 22. Bh4 {[%emt 0:03:03]} g5 {[%emt 0:00:09]} 23. Re4 {[%emt 0:02:00]} Kh7 {[%emt 0:01:25]} 24. Bg3 {[%emt 0:02:53]} Rxb2 {[%emt 0:01:07]} 25. Qxa7 {[%emt 0:04:19]} Rxc2 {[%emt 0:00:32]} 26. h4 {[%emt 0:01:25]} Rb2 {[%emt 0:00:48]} 27. hxg5 {[%emt 0:04:09]} hxg5 {[%emt 0:00:11]} 28. Rg4 {[%emt 0:01:49]} Kh6 {[%emt 0:00:42]} 29. Qa8 {[%emt 0:02:04]} Rb8 {[%emt 0:00:34]} 30. Qa4 {[%emt 0:00:51] normal} 1-0

[Event "DVM U14w 2019"]
[Site "Neumuenster"]
[Date "2019.12.30"]
[Round "7"]
[White "Dixon Quiroz, Laura Michaela"]
[Black "Nguyen, Jenny Ha-Linh"]
[Result "0-1"]
[ECO "C02"]
[WhiteElo "1310"]
[BlackElo "1387"]
[Annotator "NA"]
[PlyCount "94"]
[EventDate "2019.12.27"]
[EventType "team-tourn"]
[EventRounds "7"]
[EventCountry "GER"]
[SourceTitle "playchess.com"]
[Source "ChessBase"]
[SourceQuality "1"]
[WhiteTeam "VSG 1880 Offenbach"]
[BlackTeam "SG Leipzig"]
[WhiteTeamCountry "GER"]
[BlackTeamCountry "GER"]
[TimeControl "40/5400+30:1800+30"]

1. e4 {[%emt 0:00:00]} e6 {[%emt 0:00:00]} 2. d4 {[%emt 0:00:00]} d5 {[%emt 0:00:00]} 3. e5 {[%emt 0:00:00]} c5 {[%emt 0:00:00]} 4. c3 {[%emt 0:00:13]} Nc6 {[%emt 0:00:00]} 5. Nf3 {[%emt 0:00:12]} Bd7 {[%emt 0:00:22]} 6. Be2 {[%emt 0:00:49]} Qc7 {[%emt 0:01:32]} 7. a3 {[%emt 0:02:22]} c4 {[%emt 0:02:03]} 8. b3 {[%emt 0:01:40]} cxb3 {[%emt 0:02:13]} 9. Qxb3 {[%emt 0:00:29]} f6 {[%emt 0:00:40]} 10. Bf4 {[%emt 0:02:34]} fxe5 {[%emt 0:02:47]} 11. Bxe5 {[%emt 0:04:14]} Nxe5 {[%emt 0:01:02]} 12. Nxe5 {[%emt 0:00:17]} Nf6 {[%emt 0:08:58]} 13. Nd2 {[%emt 0:01:51]} Bd6 {[%emt 0:05:52]} 14. f4 {[%emt 0:02:24]} a6 {[%emt 0:09:07]} 15. a4 {[%emt 0:07:55]} O-O {[%emt 0:22:34]} 16. O-O {[%emt 0:00:38]} Be8 {[%emt 0:01:56]} 17. c4 {[%emt 0:03:55]} b6 {[%emt 0:03:45]} 18. cxd5 {[%emt 0:07:08]} exd5 {[%emt 0:03:07]} 19. Ne4 {[%emt 0:01:55]} Kh8 {[%emt 0:04:20]} 20. Nxf6 {[%emt 0:01:52]} Rxf6 {[%emt 0:00:21]} 21. Qxd5 {[%emt 0:01:02]} Rd8 {[%emt 0:05:41]} 22. Bc4 {[%emt 0:06:49]} Rf8 {[%emt 0:02:11]} 23. Bxa6 {[%emt 0:02:57]} Bc5 {[%emt 0:04:26]} 24. Qf3 {[%emt 0:16:56]} Bxd4+ {[%emt 0:00:29]} 25. Kh1 {[%emt 0:00:29]} Bxe5 {[%emt 0:03:04]} 26. Rac1 {[%emt 0:02:17]} Qa7 {[%emt 0:02:30]} 27. Bb5 {[%emt 0:00:27]} Bxb5 {[%emt 0:00:25]} 28. axb5 {[%emt 0:00:13]} Rxf4 {[%emt 0:01:36]} 29. Rfd1 {[%emt 0:03:44]} Rfd4 {[%emt 0:03:56]} 30. Rxd4 {[%emt 0:00:29]} Bxd4 {[%emt 0:00:08]} 31. Rd1 {[%emt 0:00:40]} Qd7 {[%emt 0:01:34]} 32. Qc6 {[%emt 0:00:29]} h6 {[%emt 0:01:03]} 33. h3 {[%emt 0:02:15]} Qxc6 {[%emt 0:00:14]} 34. bxc6 {[%emt 0:00:11]} Bf6 {[%emt 0:00:51]} 35. Rb1 {[%emt 0:01:00]} Rb8 {[%emt 0:01:37]} 36. g4 {[%emt 0:04:24]} Bd8 {[%emt 0:02:19]} 37. Kg2 {[%emt 0:00:12]} Rc8 {[%emt 0:00:35]} 38. Rc1 {[%emt 0:00:10]} Kg8 {[%emt 0:00:23]} 39. Kf3 {[%emt 0:00:11]} Kf7 {[%emt 0:00:07]} 40. Ke4 {[%emt 0:00:36]} Ke6 {[%emt 0:00:28]} 41. Kd4 {[%emt 0:30:40]} Kd6 {[%emt 0:31:43]} 42. Ke4 {[%emt 0:02:31]} Rxc6 {[%emt 0:00:20]} 43. Rxc6+ {[%emt 0:00:13]} Kxc6 {[%emt 0:00:06]} 44. Kf5 {[%emt 0:00:05]} b5 {[%emt 0:00:11]} 45. Kg6 {[%emt 0:00:08]} Bf6 {[%emt 0:00:03]} 46. h4 {[%emt 0:00:22]} Bxh4 {[%emt 0:00:10]} 47. Kxg7 {[%emt 0:00:08]} Bg5 {[%emt 0:00:03] normal} 0-1

[Event "DVM U14w 2019"]
[Site "Neumuenster"]
[Date "2019.12.30"]
[Round "7"]
[White "Moradi, Yassaman"]
[Black "Stowicek, Yara Mathilda"]
[Result "0-1"]
[ECO "C44"]
[WhiteElo "1293"]
[BlackElo "1682"]
[Annotator "NA"]
[PlyCount "118"]
[EventDate "2019.12.27"]
[EventType "team-tourn"]
[EventRounds "7"]
[EventCountry "GER"]
[SourceTitle "playchess.com"]
[Source "ChessBase"]
[SourceQuality "1"]
[WhiteTeam "SV Traktor Priestewitz"]
[BlackTeam "USV Halle"]
[BlackTeamCountry "GER"]
[TimeControl "40/5400+30:1800+30"]

1. e4 {[%emt 0:00:00]} e5 {[%emt 0:00:00]} 2. Nf3 {[%emt 0:00:00]} Nc6 {[%emt 0:00:00]} 3. d4 {[%emt 0:00:00]} exd4 {[%emt 0:00:00]} 4. Nxd4 {[%emt 0:00:00]} Qh4 {[%emt 0:00:04]} 5. Nxc6 {[%emt 0:00:51]} Qxe4+ 6. Qe2 Qxe2+ {[%emt 0:01:20]} 7. Bxe2 {[%emt 0:00:36]} dxc6 {[%emt 0:00:12]} 8. Nc3 {[%emt 0:00:07]} Nf6 {[%emt 0:00:40]} 9. O-O {[%emt 0:02:59]} Bf5 {[%emt 0:02:34]} 10. Bd3 {[%emt 0:03:12]} Bxd3 {[%emt 0:00:53]} 11. Re1+ {[%emt 0:03:14]} Be7 {[%emt 0:03:08]} 12. cxd3 {[%emt 0:00:09]} Rd8 {[%emt 0:01:52]} 13. Bf4 {[%emt 0:08:42]} Rd7 {[%emt 0:02:35]} 14. h3 {[%emt 0:06:57]} Kd8 {[%emt 0:00:30]} 15. a3 {[%emt 0:05:58]} Re8 {[%emt 0:01:25]} 16. Rad1 {[%emt 0:01:46]} Kc8 {[%emt 0:03:22]} 17. Bg5 {[%emt 0:02:36]} Red8 {[%emt 0:02:19]} 18. Re3 {[%emt 0:03:12]} Nd5 {[%emt 0:06:34]} 19. Rg3 {[%emt 0:02:55]} Bxg5 {[%emt 0:04:19]} 20. Rxg5 {[%emt 0:00:12]} f6 {[%emt 0:00:30]} 21. Rg3 {[%emt 0:00:50]} Nf4 {[%emt 0:01:11]} 22. Re3 {[%emt 0:02:57]} Nxd3 {[%emt 0:01:45]} 23. Rb1 {[%emt 0:02:21]} Ne5 {[%emt 0:00:49]} 24. Ree1 {[%emt 0:02:49]} Rd2 {[%emt 0:03:25]} 25. Ne4 {[%emt 0:04:26]} R2d5 {[%emt 0:04:06]} 26. Nc3 {[%emt 0:01:01]} Rd3 {[%emt 0:01:33]} 27. Ne4 {[%emt 0:00:45]} b6 {[%emt 0:00:55]} 28. Nc3 {[%emt 0:01:09]} R8d7 {[%emt 0:04:07]} 29. Ne4 {[%emt 0:03:30]} Nc4 {[%emt 0:02:12]} 30. Nc3 {[%emt 0:01:23]} Nxb2 {[%emt 0:04:18]} 31. Rxb2 {[%emt 0:00:20]} Rxc3 {[%emt 0:00:07]} 32. Ra2 {[%emt 0:00:24]} Rcd3 {[%emt 0:01:36]} 33. Raa1 {[%emt 0:00:12]} Kd8 {[%emt 0:00:43]} 34. Kf1 {[%emt 0:00:23]} Re7 {[%emt 0:00:49]} 35. Rec1 {[%emt 0:00:18]} c5 {[%emt 0:00:19]} 36. g3 {[%emt 0:01:12]} Rd2 {[%emt 0:01:13]} 37. Kg2 {[%emt 0:00:35]} Ree2 {[%emt 0:00:37]} 38. Rf1 {[%emt 0:00:14]} c4 {[%emt 0:00:53]} 39. Rac1 {[%emt 0:00:11]} b5 {[%emt 0:00:51]} 40. h4 {[%emt 0:01:30]} Ra2 {[%emt 0:01:18]} 41. Rc3 {[%emt 0:31:23]} Rac2 {[%emt 0:30:27]} 42. Rxc2 {[%emt 0:00:53]} Rxc2 {[%emt 0:01:34]} 43. Kf3 {[%emt 0:00:09]} Rc3+ {[%emt 0:00:07]} 44. Ke2 {[%emt 0:00:08]} Rxa3 {[%emt 0:00:12]} 45. Kd2 {[%emt 0:00:34]} a5 {[%emt 0:00:58]} 46. Kc2 {[%emt 0:00:14]} b4 {[%emt 0:00:39]} 47. Kb2 {[%emt 0:00:12]} c3+ {[%emt 0:01:30]} 48. Kc2 {[%emt 0:00:04]} Ra2+ {[%emt 0:00:12]} 49. Kb3 {[%emt 0:00:12]} Rb2+ {[%emt 0:00:19]} 50. Ka4 {[%emt 0:00:22]} c2 {[%emt 0:00:52]} 51. Rc1 {[%emt 0:00:13]} b3 {[%emt 0:00:08]} 52. Kb5 {[%emt 0:00:36]} Rb1 {[%emt 0:00:06]} 53. Rxb1 {[%emt 0:00:07]} cxb1=Q 54. Kxa5 Qa2+ {[%emt 0:01:16]} 55. Kb4 {[%emt 0:00:39]} b2 {[%emt 0:00:16]} 56. Kc3 {[%emt 0:00:10]} b1=Q {[%emt 0:00:16]} 57. Kd4 {[%emt 0:00:08]} Qac2 {[%emt 0:00:26]} 58. Ke3 {[%emt 0:00:04]} Qd3+ {[%emt 0:00:11]} 59. Kf4 {[%emt 0:00:10]} Qe4# {[%emt 0:00:04] normal} 0-1